[Event "Czech Open-E Teams 2022"]
[Site "Pardubice"]
[Date "2022.07.17"]
[Round "6.29"]
[White "Petr, Martin"]
[Black "Zvolensky, David"]
[Result "0-1"]
[ECO "A05"]
[WhiteElo "2500"]
[BlackElo "2196"]
[Annotator "ChessBase"]
[PlyCount "78"]
[EventDate "2022.07.14"]
[EventType "team-tourn"]
[EventCountry "CZE"]
[SourceTitle "playchess.com"]
[Source "ChessBase"]
[SourceQuality "1"]
[TimeControl "5400+30"]

1. Nf3 {[%emt 0:00:04]} Nf6 {[%emt 0:00:25]} 2. g3 {[%emt 0:00:09]} d5 {[%emt 0:00:17]} 3. Bg2 {[%emt 0:00:06]} e6 {[%emt 0:00:04]} 4. O-O {[%emt 0:00:07]} Be7 {[%emt 0:00:03]} 5. d3 {[%emt 0:00:35]} O-O {[%emt 0:00:06]} 6. Bf4 {[%emt 0:00:59]} c5 {[%emt 0:00:47]} 7. e4 {[%emt 0:00:09]} dxe4 {[%emt 0:01:00]} 8. dxe4 {[%emt 0:00:05]} b5 {[%emt 0:03:28]} 9. Nbd2 {[%emt 0:13:05]} Bb7 {[%emt 0:00:10]} 10. Qe2 {[%emt 0:01:00]} Qb6 {[%emt 0:00:53]} 11. c4 {[%emt 0:05:56]} a6 {[%emt 0:02:26]} 12. e5 {[%emt 0:02:32]} Nfd7 {[%emt 0:00:48]} 13. Ne4 {[%emt 0:05:16]} Nc6 {[%emt 0:05:36]} 14. Rad1 {[%emt 0:01:29]} Rfd8 {[%emt 0:00:23]} 15. Nd6 {[%emt 0:07:47]} Bxd6 {[%emt 0:07:36]} 16. Rxd6 {[%emt 0:00:43]} Nf8 {[%emt 0:01:09]} 17. Rfd1 {[%emt 0:02:30]} Rxd6 {[%emt 0:00:59]} 18. Rxd6 {[%emt 0:03:41]} Rd8 {[%emt 0:01:59]} 19. cxb5 {[%emt 0:01:49]} Rxd6 {[%emt 0:00:42]} 20. exd6 {[%emt 0:00:49]} axb5 {[%emt 0:00:08]} 21. Be3 {[%emt 0:05:35]} Nd7 {[%emt 0:13:46]} 22. Ng5 {[%emt 0:03:02]} Nd8 {[%emt 0:01:10]} 23. Bxb7 {[%emt 0:04:11]} Qxb7 {[%emt 0:00:08]} 24. Bxc5 {[%emt 0:00:25]} h6 {[%emt 0:03:49]} 25. Ne4 {[%emt 0:01:47]} f5 {[%emt 0:00:08]} 26. Nc3 {[%emt 0:00:12]} Nxc5 {[%emt 0:00:09]} 27. Nxb5 {[%emt 0:00:11]} Qd5 {[%emt 0:00:38]} 28. Qc2 {[%emt 0:05:40]} Nf7 {[%emt 0:03:09]} 29. a4 {[%emt 0:03:05]} Ng5 {[%emt 0:06:29]} 30. h4 {[%emt 0:01:40]} Nf3+ {[%emt 0:00:34]} 31. Kf1 {[%emt 0:00:01]} Ne4 {[%emt 0:01:13]} 32. Ke2 {[%emt 0:03:06]} Nxd6 {[%emt 0:03:31]} 33. Ke3 {[%emt 0:02:41]} Nxb5 {[%emt 0:00:59]} 34. axb5 {[%emt 0:00:03]} Nd4 {[%emt 0:01:01]} 35. Qc8+ {[%emt 0:00:21]} Kf7 {[%emt 0:01:42]} 36. Qc7+ {[%emt 0:00:42]} Kf6 {[%emt 0:00:36]} 37. Qc3 {[%emt 0:02:29]} e5 {[%emt 0:00:30]} 38. f4 {[%emt 0:00:09]} Qf3+ {[%emt 0:06:21]} 39. Kd2 {[%emt 0:00:04]} Qxc3+ {[%emt 0:00:24]} 0-1

[Event "Czech Open-E Teams 2022"]
[Site "Pardubice"]
[Date "2022.07.17"]
[Round "6.30"]
[White "Pychova, Nela"]
[Black "Neuman, Petr"]
[Result "1/2-1/2"]
[ECO "A15"]
[WhiteElo "2075"]
[BlackElo "2378"]
[Annotator "ChessBase"]
[PlyCount "78"]
[EventDate "2022.07.14"]
[EventType "team-tourn"]
[EventCountry "CZE"]
[SourceTitle "playchess.com"]
[Source "ChessBase"]
[SourceQuality "1"]
[TimeControl "5400+30"]

1. c4 {[%emt 0:00:03]} Nf6 {[%emt 0:05:09]} 2. Nf3 {[%emt 0:00:21]} g6 {[%emt 0:00:07]} 3. g3 {[%emt 0:00:26]} Bg7 {[%emt 0:00:06]} 4. Bg2 {[%emt 0:00:39]} O-O {[%emt 0:00:07]} 5. O-O {[%emt 0:00:24]} d6 {[%emt 0:00:03]} 6. Nc3 {[%emt 0:00:17]} c6 {[%emt 0:00:23]} 7. Rb1 {[%emt 0:02:50]} e5 {[%emt 0:00:17]} 8. d3 {[%emt 0:00:27]} h6 {[%emt 0:02:13]} 9. b4 {[%emt 0:02:29]} Be6 {[%emt 0:00:41]} 10. b5 {[%emt 0:03:14]} Nbd7 {[%emt 0:01:29]} 11. bxc6 {[%emt 0:05:31]} bxc6 {[%emt 0:00:05]} 12. Qa4 {[%emt 0:05:41]} Qc7 {[%emt 0:00:56]} 13. Ba3 {[%emt 0:00:38]} Rfc8 {[%emt 0:04:46]} 14. Rfc1 {[%emt 0:13:49]} Ne8 {[%emt 0:03:05]} 15. Nd2 {[%emt 0:02:34]} a5 {[%emt 0:03:23]} 16. Nd5 {[%emt 0:11:01]} Qd8 {[%emt 0:00:41]} 17. Nc3 {[%emt 0:00:50]} Nb6 {[%emt 0:01:21]} 18. Qc2 {[%emt 0:01:28]} Nd7 {[%emt 0:07:46]} 19. Qa4 {[%emt 0:01:21]} Ra6 {[%emt 0:04:58]} 20. Qc2 {[%emt 0:12:13]} f5 {[%emt 0:02:38]} 21. Na4 {[%emt 0:00:34]} h5 {[%emt 0:06:48]} 22. Rb7 {[%emt 0:02:51]} h4 {[%emt 0:00:19]} 23. Rcb1 {[%emt 0:02:09]} hxg3 {[%emt 0:03:02]} 24. hxg3 {[%emt 0:00:17]} Bf8 {[%emt 0:00:49]} 25. Qb2 {[%emt 0:02:28]} Bh6 {[%emt 0:06:20]} 26. Nf1 {[%emt 0:02:51]} Rc7 {[%emt 0:02:53]} 27. Rxc7 {[%emt 0:02:33]} Qxc7 {[%emt 0:00:04]} 28. Qb7 {[%emt 0:00:18]} Qxb7 {[%emt 0:00:59]} 29. Rxb7 {[%emt 0:00:09]} d5 {[%emt 0:01:00]} 30. Ne3 {[%emt 0:08:52]} Nef6 {[%emt 0:06:47]} 31. cxd5 {[%emt 0:05:58]} cxd5 {[%emt 0:00:08]} 32. Nxd5 {[%emt 0:01:00]} Nxd5 {[%emt 0:00:11]} 33. Bxd5 {[%emt 0:00:06]} Bxd5 {[%emt 0:00:03]} 34. Rxd7 {[%emt 0:00:06]} Bxa2 {[%emt 0:00:12]} 35. Rd8+ {[%emt 0:01:16]} Kf7 {[%emt 0:01:02]} 36. Rd7+ {[%emt 0:02:26]} Kg8 {[%emt 0:00:36]} 37. Rd8+ {[%emt 0:00:15]} Kf7 {[%emt 0:00:40]} 38. Rd7+ {[%emt 0:00:49]} Kg8 {[%emt 0:00:04]} 39. Rd8+ {[%emt 0:00:06]} Kf7 {[%emt 0:00:06]} 1/2-1/2

[Event "Czech Open-E Teams 2022"]
[Site "Pardubice"]
[Date "2022.07.17"]
[Round "6.31"]
[White "Wasserbauer, Radek"]
[Black "Dudek, Vojtech"]
[Result "0-1"]
[ECO "B30"]
[WhiteElo "2164"]
[BlackElo "2006"]
[Annotator "ChessBase"]
[PlyCount "40"]
[EventDate "2022.07.14"]
[EventType "team-tourn"]
[EventCountry "CZE"]
[SourceTitle "playchess.com"]
[Source "ChessBase"]
[SourceQuality "1"]
[TimeControl "5400+30"]

1. e4 {[%emt 0:00:02]} c5 {[%emt 0:10:10]} 2. Nf3 {[%emt 0:00:53]} Nc6 {[%emt 0:06:06]} 3. Bb5 {[%emt 0:00:15]} e6 {[%emt 0:00:30]} 4. Bxc6 {[%emt 0:00:12]} bxc6 {[%emt 0:00:05]} 5. O-O {[%emt 0:00:08]} Ne7 {[%emt 0:00:25]} 6. e5 {[%emt 0:00:36]} Ng6 {[%emt 0:00:13]} 7. b3 {[%emt 0:01:30]} Be7 {[%emt 0:00:25]} 8. c3 {[%emt 0:06:26]} f6 {[%emt 0:01:57]} 9. d4 {[%emt 0:00:01]} cxd4 {[%emt 0:00:08]} 10. cxd4 {[%emt 0:00:04]} c5 {[%emt 0:03:15]} 11. Bb2 {[%emt 0:03:03]} cxd4 {[%emt 0:00:29]} 12. Bxd4 {[%emt 0:01:06]} O-O {[%emt 0:03:16]} 13. Nc3 {[%emt 0:05:58]} Bb7 {[%emt 0:01:49]} 14. exf6 {[%emt 0:10:21]} Bxf6 {[%emt 0:00:16]} 15. Bxf6 {[%emt 0:00:02]} Qxf6 {[%emt 0:00:47]} 16. Nd4 {[%emt 0:00:08]} Nh4 {[%emt 0:07:32]} 17. f3 {[%emt 0:00:55]} Qg5 {[%emt 0:00:38]} 18. Rf2 {[%emt 0:01:25]} e5 {[%emt 0:04:44]} 19. Nde2 {[%emt 0:04:20]} Nxf3+ {[%emt 0:01:26]} 20. Kh1 {[%emt 0:00:22]} Nxh2 {[%emt 0:02:40]} 0-1

[Event "Czech Open-E Teams 2022"]
[Site "Pardubice"]
[Date "2022.07.17"]
[Round "6.32"]
[White "Vlkova, Anezka"]
[Black "Cozl, David"]
[Result "1-0"]
[ECO "B10"]
[WhiteElo "1954"]
[BlackElo "1947"]
[Annotator "TA"]
[PlyCount "59"]
[EventDate "2022.07.14"]
[EventType "team-tourn"]
[EventCountry "CZE"]
[SourceTitle "playchess.com"]
[Source "ChessBase"]
[SourceQuality "1"]
[TimeControl "5400+30"]

{[%evp 9,59,39,41,10,55,43,41,12,13,8,0,0,16,-21,15,14,43,31,32,41,42,29,65,-10,-4,-22,25,-14,12,8,65,55,120,121,181,160,177,179,208,218,214,208,200,174,174,87,346,289,340,346,592,582]} 1. e4 {[%emt 0:01:06]} c6 {[%emt 0:00:05]} 2. Nc3 {[%emt 0:00:17]} d5 {[%emt 0:00:14]} 3. Nf3 {[%emt 0:01:05]} dxe4 {[%emt 0:00:10]} 4. Nxe4 {[%emt 0:00:09]} Nf6 {[%emt 0:00:05]} 5. Qe2 {[%emt 0:00:04]} Bg4 {[%emt 0:02:52]} 6. d3 {[%emt 0:07:59] B11: Caro-Kann: Two Knights Variation.} Bxf3 {[%emt 0:01:04]} 7. Qxf3 {[%emt 0:03:45] [#]} Nbd7 $146 {[%emt 0:00:32]} ({Predecessor:} 7... Nxe4 8. Qxe4 Qd5 9. Qh4 Nd7 10. Be2 e6 11. O-O Be7 12. Qg3 Bf6 13. c3 h5 {1-0 (47) Zelbel,P (2448)-Bazeev,G (2398) Chess.com INT 2020}) 8. Bg5 {[%emt 0:03:21] White is slightly better.} e6 {[%emt 0:09:45]} 9. Qg3 {[%emt 0:12:39]} Nxe4 {[%emt 0:10:46]} 10. dxe4 {[%emt 0:00:12]} Qa5+ {[%emt 0:09:05]} 11. c3 {[%emt 0:08:28]} (11. Bd2 $5 {[%cal Rd2a5]} Qa4 12. Bd3 $11) 11... h6 {[%emt 0:08:47]} (11... Bd6 $5 {[%cal Rd6g3]} 12. Qe3 f6 $11) 12. Be3 {[%emt 0:06:30]} Nf6 {[%emt 0:00:32]} 13. f3 {[%emt 0:02:27]} Nh5 {[%emt 0:04:48]} 14. Qf2 {[%emt 0:02:08]} Be7 {[%emt 0:01:32]} 15. Be2 {[%emt 0:03:20]} O-O {[%emt 0:00:52]} 16. f4 {[%emt 0:03:22]} ({White should play} 16. g4 $14 Nf6 17. h4) 16... Nf6 $11 {[%emt 0:00:55]} 17. Qf3 {[%emt 0:02:50]} Qa4 {[%emt 0:03:35]} (17... e5 $142) 18. Bd4 {[%emt 0:06:36]} Nd7 {[%emt 0:09:29]} 19. O-O {[%emt 0:06:32]} c5 {[%emt 0:09:50]} (19... Bc5 $11) 20. Bf2 $14 {[%emt 0:02:43]} Nf6 {[%emt 0:01:07]} (20... c4 $14) 21. e5 $16 {[%emt 0:00:58]} Nd5 {[%emt 0:00:32]} (21... Ne4 $16) 22. c4 $18 {[%emt 0:00:43]} Nb4 {[%emt 0:02:22]} 23. Qxb7 {[%emt 0:01:55]} Rfe8 {[%emt 0:00:02]} 24. a3 {[%emt 0:02:43]} Rab8 {[%emt 0:03:34]} 25. Qe4 {[%emt 0:00:53]} (25. axb4 Qxa1 26. Rxa1 Rxb7 $14) 25... Qc2 {[%emt 0:03:09]} 26. Qf3 {[%emt 0:02:48]} Nc6 {[%emt 0:03:16][%cal Oc2b2]} 27. Bd3 {[%emt 0:01:39]} ({But not} 27. Qxc6 $6 Qxe2 28. b3 Qb2 $14) (27. Rae1 $18 Nd4 28. Bxd4 cxd4 29. b4) 27... Qa4 {[%emt 0:01:36][%mdl 8192]} (27... Qb3 $16) 28. b4 {[%emt 0:00:46] [#] Qe4 is the strong threat.} Red8 {[%emt 0:02:38]} 29. Qe4 {[%emt 0:01:22] White wants to mate with Qh7+.} ({Not} 29. Bxc5 Bxc5+ 30. bxc5 Nd4 $14) ({Weaker is} 29. bxc5 g6 $16) 29... g6 $2 {[%emt 0:00:05]} (29... Rxd3 30. Qxd3 cxb4 31. axb4 Nxb4) 30. Bc2 {Weighted Error Value: White=0.22 (precise) /Black=0.42} 1-0

[Event "Czech Open-E Teams 2022"]
[Site "Pardubice"]
[Date "2022.07.17"]
[Round "6.33"]
[White "Kacirek, Petr"]
[Black "Plat, Vojtech"]
[Result "0-1"]
[ECO "A01"]
[WhiteElo "2245"]
[BlackElo "2554"]
[Annotator "ChessBase"]
[PlyCount "67"]
[EventDate "2022.07.14"]
[EventType "team-tourn"]
[EventCountry "CZE"]
[SourceTitle "playchess.com"]
[Source "ChessBase"]
[SourceQuality "1"]
[TimeControl "5400+30"]

1. b3 {[%emt 0:00:02]} e5 {[%emt 0:01:07]} 2. Bb2 {[%emt 0:00:07]} d6 {[%emt 0:00:07]} 3. g3 {[%emt 0:01:16]} Nf6 {[%emt 0:00:15]} 4. Bg2 {[%emt 0:00:19]} Be7 {[%emt 0:00:24]} 5. d3 {[%emt 0:01:39]} c6 {[%emt 0:00:19]} 6. Nd2 {[%emt 0:00:51]} a5 {[%emt 0:00:23]} 7. a4 {[%emt 0:01:46]} Be6 {[%emt 0:00:44]} 8. e3 {[%emt 0:04:15]} Na6 {[%emt 0:06:28]} 9. Ne2 {[%emt 0:01:44]} Nb4 {[%emt 0:02:04]} 10. h3 {[%emt 0:02:31]} h5 {[%emt 0:05:58]} 11. d4 {[%emt 0:06:00]} Qc7 {[%emt 0:04:43]} 12. Qb1 {[%emt 0:06:35]} c5 {[%emt 0:13:45]} 13. c3 {[%emt 0:09:43]} Nc6 {[%emt 0:00:07]} 14. c4 {[%emt 0:03:12]} cxd4 {[%emt 0:06:02]} 15. exd4 {[%emt 0:00:30]} Bd7 {[%emt 0:01:36]} 16. Nf3 {[%emt 0:18:43]} g6 {[%emt 0:06:27]} 17. O-O {[%emt 0:02:53]} Bf5 {[%emt 0:03:42]} 18. Qd1 {[%emt 0:01:44]} O-O {[%emt 0:08:30]} 19. Nh4 {[%emt 0:06:43]} Bd7 {[%emt 0:00:14]} 20. f4 {[%emt 0:01:13]} Nh7 {[%emt 0:02:54]} 21. d5 {[%emt 0:07:04]} Nb4 {[%emt 0:00:24]} 22. Nc3 {[%emt 0:04:26]} Rae8 {[%emt 0:09:27]} 23. f5 {[%emt 0:03:44]} Bxh4 {[%emt 0:00:19]} 24. gxh4 {[%emt 0:01:20]} Qd8 {[%emt 0:05:24]} 25. f6 {[%emt 0:03:13]} Nxf6 {[%emt 0:00:31]} 26. Bc1 {[%emt 0:00:13]} Nh7 {[%emt 0:00:21]} 27. Bh6 {[%emt 0:00:52]} f5 {[%emt 0:00:50]} 28. Bxf8 {[%emt 0:00:15]} Nxf8 {[%emt 0:01:14]} 29. Nb5 {[%emt 0:02:39]} e4 {[%emt 0:01:34]} 30. Rc1 {[%emt 0:01:34]} Bxb5 {[%emt 0:00:37]} 31. cxb5 {[%emt 0:00:10]} Nd3 {[%emt 0:03:06]} 32. Rc3 {[%emt 0:00:58]} Nd7 {[%emt 0:00:34]} 33. Qc2 {[%emt 0:01:50]} N7c5 34. Qd1 0-1

[Event "Czech Open-E Teams 2022"]
[Site "Pardubice"]
[Date "2022.07.17"]
[Round "6.34"]
[White "Eret, Matous"]
[Black "Horak, Jan"]
[Result "1/2-1/2"]
[ECO "A08"]
[WhiteElo "2273"]
[BlackElo "2163"]
[Annotator "ChessBase"]
[PlyCount "26"]
[EventDate "2022.07.14"]
[EventType "team-tourn"]
[EventCountry "CZE"]
[SourceTitle "playchess.com"]
[Source "ChessBase"]
[SourceQuality "1"]
[TimeControl "5400+30"]

1. e4 {[%emt 0:15:14]} e6 {[%emt 0:00:27]} 2. d3 {[%emt 0:02:23]} d5 {[%emt 0:00:26]} 3. Nd2 {[%emt 0:00:46]} Nf6 {[%emt 0:00:41]} 4. Ngf3 {[%emt 0:00:27]} Be7 {[%emt 0:00:38]} 5. g3 {[%emt 0:00:09]} c5 {[%emt 0:00:30]} 6. Bg2 {[%emt 0:00:04]} Nc6 {[%emt 0:00:16]} 7. O-O {[%emt 0:00:06]} O-O {[%emt 0:00:18]} 8. Re1 {[%emt 0:00:42]} b5 {[%emt 0:01:55]} 9. h4 {[%emt 0:04:58]} Bb7 {[%emt 0:00:50]} 10. e5 {[%emt 0:03:14]} Nd7 {[%emt 0:00:45]} 11. Nf1 {[%emt 0:01:41]} Qc7 {[%emt 0:01:10]} 12. Bf4 {[%emt 0:00:43]} Rfc8 {[%emt 0:00:13]} 13. N1h2 {[%emt 0:01:23]} Qd8 {[%emt 0:04:34]} 1/2-1/2

[Event "Czech Open-E Teams 2022"]
[Site "Pardubice"]
[Date "2022.07.17"]
[Round "6.35"]
[White "Volak, Simon"]
[Black "Eret, Jonas"]
[Result "1/2-1/2"]
[ECO "C41"]
[WhiteElo "2082"]
[BlackElo "2219"]
[Annotator "ChessBase"]
[PlyCount "67"]
[EventDate "2022.07.14"]
[EventType "team-tourn"]
[EventCountry "CZE"]
[SourceTitle "playchess.com"]
[Source "ChessBase"]
[SourceQuality "1"]
[TimeControl "5400+30"]

1. e4 {[%emt 0:00:04]} d6 {[%emt 0:34:46]} 2. d4 {[%emt 0:00:04]} Nf6 {[%emt 0:00:03]} 3. Nc3 {[%emt 0:00:05]} e5 {[%emt 0:00:25]} 4. Nf3 {[%emt 0:00:07]} Nbd7 {[%emt 0:00:04]} 5. Bc4 {[%emt 0:00:33]} Be7 {[%emt 0:00:12]} 6. a4 {[%emt 0:00:28]} a5 {[%emt 0:01:12]} 7. Ng5 {[%emt 0:01:05]} O-O {[%emt 0:01:32]} 8. Bxf7+ {[%emt 0:00:14]} Rxf7 {[%emt 0:00:06]} 9. Ne6 {[%emt 0:00:06]} Qe8 {[%emt 0:00:19]} 10. Nxc7 {[%emt 0:00:07]} Qd8 {[%emt 0:00:27]} 11. Nxa8 {[%emt 0:00:07]} b6 {[%emt 0:08:28]} 12. Nb5 {[%emt 0:21:34]} Nxe4 {[%emt 0:06:43]} 13. O-O {[%emt 0:03:47]} Bb7 {[%emt 0:03:17]} 14. Nac7 {[%emt 0:00:46]} Nf8 {[%emt 0:03:14]} 15. c4 {[%emt 0:10:43]} exd4 {[%emt 0:08:15]} 16. Nd5 {[%emt 0:02:54]} Bh4 {[%emt 0:13:29]} 17. f4 {[%emt 0:20:49]} Ne6 {[%emt 0:01:52]} 18. Nxd4 {[%emt 0:05:09]} N6c5 {[%emt 0:00:01]} 19. Be3 {[%emt 0:03:48]} Bf6 {[%emt 0:01:51]} 20. Qc2 {[%emt 0:02:19]} Bxd5 {[%emt 0:05:35]} 21. cxd5 {[%emt 0:00:06]} Bxd4 {[%emt 0:00:46]} 22. Bxd4 {[%emt 0:00:07]} Qh4 {[%emt 0:00:19]} 23. Bxc5 {[%emt 0:02:39]} Nxc5 {[%emt 0:00:05]} 24. Qc4 {[%emt 0:13:50]} Re7 {[%emt 0:00:46]} 25. Qb5 {[%emt 0:00:21]} Qf6 {[%emt 0:02:55]} 26. Rad1 {[%emt 0:01:56]} h6 {[%emt 0:00:59]} 27. Kh1 {[%emt 0:03:28]} Re4 {[%emt 0:00:20]} 28. Qxb6 {[%emt 0:01:00]} Rxa4 {[%emt 0:00:05]} 29. Rde1 {[%emt 0:01:27]} Kh7 {[%emt 0:01:45]} 30. Qc7 {[%emt 0:03:47]} Ra2 {[%emt 0:01:56]} 31. Rb1 {[%emt 0:01:27]} Ra4 {[%emt 0:02:42]} 32. Qb6 {[%emt 0:00:57]} Ra2 {[%emt 0:00:55]} 33. Qb5 {[%emt 0:00:33]} Qd4 {[%emt 0:00:48]} 34. Qe2 {[%emt 0:00:30]} 1/2-1/2

[Event "Czech Open-E Teams 2022"]
[Site "Pardubice"]
[Date "2022.07.17"]
[Round "6.36"]
[White "Singleton, Michael P F"]
[Black "Kacirek, Pavel"]
[Result "0-1"]
[ECO "A06"]
[WhiteElo "2042"]
[BlackElo "1859"]
[Annotator "TA"]
[PlyCount "54"]
[EventDate "2022.07.14"]
[EventType "team-tourn"]
[EventCountry "CZE"]
[SourceTitle "playchess.com"]
[Source "ChessBase"]
[SourceQuality "1"]
[TimeControl "5400+30"]

{[%evp 9,54,-8,0,-21,0,-48,-42,-273,-262,-270,-261,-326,-323,-336,-347,-342,-245,-244,-238,-239,-212,-258,-212,-270,-220,-288,-216,-410,-397,-538,-540,-552,-550,-526,-534,-586,-570,-602,-587,-650,-713,-706,-704,-713,-688,-817,-806]} 1. Nf3 {[%emt 0:04:23]} d5 {[%emt 0:02:05]} 2. g3 {[%emt 0:00:16]} e6 {[%emt 0:04:00][%cal Be7e6,Be6e5][%mdl 32]} 3. Bg2 {[%emt 0:04:14]} f5 {[%emt 0:01:08]} 4. d3 {[%emt 0:01:14]} Nf6 {[%emt 0:01:12] [#]} 5. Be3 $146 {[%emt 0:02:10]} ({Predecessor:} 5. O-O c6 6. c4 Be7 7. b3 O-O 8. Bb2 a5 9. Nc3 Na6 10. e3 Nc5 11. cxd5 exd5 12. Ne2 Qb6 13. Rb1 Qa6 14. Nf4 Ne6 15. Qc2 Nxf4 16. exf4 Bd7 {½-½ (49) Rahman,Z (2477)-Karttunen,M (2472) Batumi 2018}) 5... c5 {[%emt 0:06:11]} 6. Nbd2 {[%emt 0:05:12] A07: Réti Opening: New York and Capablanca Systems.} Nc6 {[%emt 0:03:14][%cal Bb8c6,Bc6e5,Be5c4,Bc4d2][%mdl 32]} 7. Nb3 {[%emt 0:04:24]} (7. Bf4 $11) 7... e5 {[%emt 0:03:10]} 8. Bxc5 $2 (8. c3 $15) 8... Bxc5 $19 {[%emt 0:00:09]} 9. Nxc5 {[%emt 0:05:10]} Qa5+ {[%emt 0:00:04]} 10. Qd2 {[%emt 0:04:06] [#] Threatens to win with Qxa5.} Qxc5 {[%emt 0:00:08]} 11. Nxe5 {[%emt 0:03:01]} Nxe5 {[%emt 0:01:50]} 12. d4 {[%emt 0:00:26]} Nc4 {[%emt 0:00:28]} 13. dxc5 {[%emt 0:00:24]} Nxd2 {[%emt 0:00:09]} 14. Kxd2 {[%emt 0:00:15]} Ne4+ {[%emt 0:00:26]} 15. Ke3 {[%emt 0:02:15]} Be6 {[%emt 0:01:53]} 16. Rad1 {[%emt 0:01:18]} O-O-O {[%emt 0:02:07]} ({Weaker is} 16... Nxc5 17. Bxd5 O-O-O 18. Bxe6+ Nxe6 19. h4 $19) 17. b4 {[%emt 0:02:57]} Rhe8 {[%emt 0:02:02]} 18. f3 $2 {[%emt 0:06:51] [#]} (18. Bxe4 fxe4 19. c3) 18... Nc3 {[%emt 0:00:12]} 19. Rd3 {[%emt 0:02:05]} d4+ {[%emt 0:00:18] Black is clearly winning.} 20. Kf2 {[%emt 0:00:35]} Bc4 {[%emt 0:02:44]} 21. Rd2 {[%emt 0:01:36]} Nxa2 {[%emt 0:03:15]} 22. Rb1 {[%emt 0:02:08]} Nc3 {[%emt 0:01:17][%csl LRb1,LRe2]} 23. Re1 {[%emt 0:01:28]} a6 {[%emt 0:01:00]} 24. f4 {[%emt 0:01:50]} Ne4+ {[%emt 0:00:10]} 25. Bxe4 {[%emt 0:00:23]} Rxe4 {[%emt 0:00:02]} 26. Red1 {[%emt 0:02:16]} Rde8 {[%emt 0:02:01]} 27. Re1 {[%emt 0:00:27]} Kc7 {[%emt 0:00:10] White did not feel at home in the position after the opening.  Weighted Error Value: White=0.73/Black=0.18 (very precise)} 0-1